[Event "Titled Tuesday Blitz July 18 Early 2023"]
[White "laimis61"]
[Black "Parpiev, Isaak"]
[BlackFideId "34281576"]
[WhiteElo "2241"]
[BlackElo "2578"]
[Result "0-1"]
[Round "1"]
[TimeControl "180+2"]
[Date "2023.07.18"]
[WhiteClock "0:00:00"]
[BlackClock "0:00:05"]
[Board "175"]

1. e4 {[%clk 0:02:59]}  c6 {[%clk 0:02:18]} 2. d4 {[%clk 0:02:58]}  d5 {[%clk 0:02:19]} 3. exd5 {[%clk 0:02:58]}  cxd5 {[%clk 0:02:20]} 4. Bd3 {[%clk 0:02:57]}  Nc6 {[%clk 0:02:19]} 5. c3 {[%clk 0:02:57]}  Nf6 {[%clk 0:02:18]} 6. h3 {[%clk 0:02:56]}  Qc7 {[%clk 0:02:16]} 7. Na3 {[%clk 0:02:51]}  a6 {[%clk 0:02:07]} 8. Nc2 {[%clk 0:02:50]}  g6 {[%clk 0:02:06]} 9. Nf3 {[%clk 0:02:48]}  Bg7 {[%clk 0:02:05]} 10. O-O {[%clk 0:02:48]}  O-O {[%clk 0:02:05]} 11. Re1 {[%clk 0:02:44]}  Bf5 {[%clk 0:02:03]} 12. Bxf5 {[%clk 0:02:36]}  gxf5 {[%clk 0:02:04]} 13. Ne3 {[%clk 0:02:34]}  e6 {[%clk 0:02:03]} 14. g3 {[%clk 0:02:21]}  Ne4 {[%clk 0:01:59]} 15. Ng2 {[%clk 0:02:21]}  b5 {[%clk 0:01:58]} 16. Bf4 {[%clk 0:02:20]}  Qb7 {[%clk 0:01:57]} 17. Qc1 {[%clk 0:02:18]}  b4 {[%clk 0:01:50]} 18. Bh6 {[%clk 0:02:13]}  bxc3 {[%clk 0:01:44]} 19. bxc3 {[%clk 0:02:12]}  Rac8 {[%clk 0:01:44]} 20. Bxg7 {[%clk 0:02:11]}  Kxg7 {[%clk 0:01:44]} 21. Ng5 {[%clk 0:02:05]}  Ne7 {[%clk 0:01:39]} 22. Nxe4 {[%clk 0:02:01]}  fxe4 {[%clk 0:01:36]} 23. Qg5+ {[%clk 0:02:00]}  Ng6 {[%clk 0:01:35]} 24. Nf4 {[%clk 0:01:59]}  Qe7 {[%clk 0:01:21]} 25. Nh5+ {[%clk 0:01:47]}  Kh8 {[%clk 0:01:19]} 26. Nf6 {[%clk 0:01:47]}  Rxc3 {[%clk 0:01:05]} 27. Rab1 {[%clk 0:01:46]}  Rf3 {[%clk 0:01:02]} 28. Nxe4 {[%clk 0:01:22]}  dxe4 {[%clk 0:01:02]} 29. Qxe7 {[%clk 0:01:22]}  Nxe7 {[%clk 0:01:02]} 30. Rxe4 {[%clk 0:01:22]}  Rd8 {[%clk 0:00:55]} 31. Rb7 {[%clk 0:01:17]}  Nc6 {[%clk 0:00:49]} 32. Kg2 {[%clk 0:01:12]}  Rf5 {[%clk 0:00:45]} 33. g4 {[%clk 0:01:09]}  Rf6 {[%clk 0:00:42]} 34. Rb6 {[%clk 0:01:06]}  Rxd4 {[%clk 0:00:35]} 35. Rxd4 {[%clk 0:01:05]}  Nxd4 {[%clk 0:00:36]} 36. Rxa6 {[%clk 0:01:05]}  Rf4 {[%clk 0:00:28]} 37. a4 {[%clk 0:01:04]}  Nb3 {[%clk 0:00:27]} 38. Rb6 {[%clk 0:01:02]}  Nc5 {[%clk 0:00:26]} 39. a5 {[%clk 0:01:01]}  Ra4 {[%clk 0:00:25]} 40. Rb5 {[%clk 0:01:01]}  Ne4 {[%clk 0:00:17]} 41. f3 {[%clk 0:00:56]}  Nd6 {[%clk 0:00:13]} 42. Rb6 {[%clk 0:00:52]}  Nc4 {[%clk 0:00:13]} 43. Rb7 {[%clk 0:00:52]}  Kg7 {[%clk 0:00:11]} 44. Kg3 {[%clk 0:00:52]}  Rxa5 {[%clk 0:00:10]} 45. h4 {[%clk 0:00:52]}  Rc5 {[%clk 0:00:10]} 46. h5 {[%clk 0:00:51]}  h6 {[%clk 0:00:10]} 47. Ra7 {[%clk 0:00:49]}  Nd6 {[%clk 0:00:10]} 48. Rd7 {[%clk 0:00:48]}  Rd5 {[%clk 0:00:10]} 49. Rc7 {[%clk 0:00:46]}  Ne8 {[%clk 0:00:09]} 50. Rb7 {[%clk 0:00:45]}  Nf6 {[%clk 0:00:09]} 51. Ra7 {[%clk 0:00:45]}  Rd3 {[%clk 0:00:09]} 52. Kf4 {[%clk 0:00:43]}  Nd5+ {[%clk 0:00:07]} 53. Kg3 {[%clk 0:00:43]}  Nc3 {[%clk 0:00:05]} 54. Ra8 {[%clk 0:00:42]}  Ne2+ {[%clk 0:00:05]} 55. Kf2 {[%clk 0:00:41]}  Nd4 {[%clk 0:00:03]} 56. Ra4 {[%clk 0:00:37]}  Rxf3+ {[%clk 0:00:02]} 57. Kg2 {[%clk 0:00:38]}  Rf4 {[%clk 0:00:03]} 58. Ra8 {[%clk 0:00:36]}  Rxg4+ {[%clk 0:00:03]} 59. Kf2 {[%clk 0:00:35]}  Rg5 {[%clk 0:00:04]} 60. Ke3 {[%clk 0:00:35]}  Nf5+ {[%clk 0:00:04]} 61. Kf4 {[%clk 0:00:35]}  Rxh5 {[%clk 0:00:05]} 62. Ra7 {[%clk 0:00:00]}  Rg5 {[%clk 0:00:05]} 0-1


[Site "https://www.chess.com"]

[Event "Titled Tuesday Blitz July 18 Early 2023"]
[White "Thiel, Thomas"]
[Black "musclemonster12"]
[WhiteFideId "4615964"]
[WhiteElo "2229"]
[BlackElo "2574"]
[Result "1/2-1/2"]
[Round "1"]
[TimeControl "180+2"]
[Date "2023.07.18"]
[WhiteClock "0:00:21"]
[BlackClock "0:00:05"]
[Board "179"]

1. e4 {[%clk 0:02:58]}  c5 {[%clk 0:02:59]} 2. Nc3 {[%clk 0:02:57]}  Nc6 {[%clk 0:02:59]} 3. Bb5 {[%clk 0:02:55]}  Nd4 {[%clk 0:02:55]} 4. Bc4 {[%clk 0:02:54]}  e6 {[%clk 0:02:55]} 5. Nge2 {[%clk 0:02:53]}  a6 {[%clk 0:02:51]} 6. d3 {[%clk 0:02:52]}  Nf6 {[%clk 0:02:48]} 7. O-O {[%clk 0:02:50]}  d5 {[%clk 0:02:46]} 8. exd5 {[%clk 0:02:47]}  exd5 {[%clk 0:02:47]} 9. Nxd5 {[%clk 0:02:46]}  Nxd5 {[%clk 0:02:40]} 10. Nxd4 {[%clk 0:02:45]}  cxd4 {[%clk 0:02:38]} 11. Qh5 {[%clk 0:02:45]}  Be6 {[%clk 0:02:29]} 12. Re1 {[%clk 0:02:45]}  Be7 {[%clk 0:00:58]} 13. Rxe6 {[%clk 0:02:44]}  O-O {[%clk 0:00:53]} 14. Bxd5 {[%clk 0:02:40]}  fxe6 {[%clk 0:00:53]} 15. Bxe6+ {[%clk 0:02:40]}  Kh8 {[%clk 0:00:53]} 16. Bf5 {[%clk 0:02:39]}  h6 {[%clk 0:00:33]} 17. Qg6 {[%clk 0:02:37]}  Rxf5 {[%clk 0:00:31]} 18. Qxf5 {[%clk 0:02:35]}  Rc8 {[%clk 0:00:31]} 19. Bf4 {[%clk 0:02:12]}  Rxc2 {[%clk 0:00:31]} 20. Rc1 {[%clk 0:02:07]}  Rxc1+ {[%clk 0:00:30]} 21. Bxc1 {[%clk 0:02:04]}  Bf6 {[%clk 0:00:31]} 22. Bf4 {[%clk 0:01:55]}  Qe7 {[%clk 0:00:31]} 23. Qe4 {[%clk 0:01:49]}  Qc5 {[%clk 0:00:20]} 24. g3 {[%clk 0:01:40]}  b5 {[%clk 0:00:16]} 25. Qa8+ {[%clk 0:01:37]}  Kh7 {[%clk 0:00:15]} 26. Qxa6 {[%clk 0:01:35]}  Qf5 {[%clk 0:00:14]} 27. Qa3 {[%clk 0:01:28]}  b4 {[%clk 0:00:11]} 28. Qb3 {[%clk 0:01:26]}  h5 {[%clk 0:00:11]} 29. h4 {[%clk 0:01:01]}  Bxh4 {[%clk 0:00:11]} 30. Qxb4 {[%clk 0:01:01]}  Bf6 {[%clk 0:00:09]} 31. Qc4 {[%clk 0:00:44]}  h4 {[%clk 0:00:09]} 32. b4 {[%clk 0:00:42]}  h3 {[%clk 0:00:06]} 33. Kh2 {[%clk 0:00:28]}  g5 {[%clk 0:00:06]} 34. Qf7+ {[%clk 0:00:24]}  Kh6 {[%clk 0:00:06]} 35. Qf8+ {[%clk 0:00:22]}  Kh7 {[%clk 0:00:05]} 36. Qf7+ {[%clk 0:00:22]}  Kh6 {[%clk 0:00:05]} 37. Qf8+ {[%clk 0:00:22]}  Kh7 {[%clk 0:00:05]} 38. Qf7+ {[%clk 0:00:21]} 1/2-1/2


[Site "https://www.chess.com"]

[Event "Titled Tuesday Blitz July 18 Early 2023"]
[White "Vaglio Munoz, Jaime"]
[Black "Gavrilov, Maxim"]
[WhiteFideId "6500145"]
[BlackFideId "24271454"]
[WhiteElo "2228"]
[BlackElo "2571"]
[Result "0-1"]
[Round "1"]
[TimeControl "180+2"]
[Date "2023.07.18"]
[WhiteClock "0:00:18"]
[BlackClock "0:00:10"]
[Board "181"]

1. Nf3 {[%clk 0:02:59]}  d5 {[%clk 0:02:59]} 2. c4 {[%clk 0:02:58]}  c6 {[%clk 0:02:58]} 3. b3 {[%clk 0:02:57]}  Nf6 {[%clk 0:02:58]} 4. Bb2 {[%clk 0:02:57]}  e6 {[%clk 0:02:55]} 5. g3 {[%clk 0:02:57]}  Bd6 {[%clk 0:02:55]} 6. Bg2 {[%clk 0:02:57]}  O-O {[%clk 0:02:55]} 7. O-O {[%clk 0:02:57]}  Nbd7 {[%clk 0:02:55]} 8. d3 {[%clk 0:02:57]}  b6 {[%clk 0:02:55]} 9. Re1 {[%clk 0:02:57]}  Bb7 {[%clk 0:02:55]} 10. e4 {[%clk 0:02:57]}  e5 {[%clk 0:02:26]} 11. Nh4 {[%clk 0:02:50]}  Re8 {[%clk 0:02:18]} 12. Nc3 {[%clk 0:02:48]}  dxe4 {[%clk 0:02:07]} 13. dxe4 {[%clk 0:02:46]}  Nc5 {[%clk 0:02:08]} 14. Qf3 {[%clk 0:02:44]}  Ne6 {[%clk 0:02:06]} 15. Rad1 {[%clk 0:02:42]}  Nd4 {[%clk 0:02:05]} 16. Qd3 {[%clk 0:02:42]}  Qc7 {[%clk 0:01:56]} 17. Nf5 {[%clk 0:02:37]}  Rad8 {[%clk 0:01:44]} 18. Nxd4 {[%clk 0:02:33]}  exd4 {[%clk 0:01:44]} 19. Ne2 {[%clk 0:02:31]}  c5 {[%clk 0:01:40]} 20. f4 {[%clk 0:02:30]}  Ng4 {[%clk 0:01:40]} 21. Bc1 {[%clk 0:02:25]}  Qc6 {[%clk 0:01:25]} 22. h3 {[%clk 0:02:19]}  Nf6 {[%clk 0:01:21]} 23. g4 {[%clk 0:02:01]}  h5 {[%clk 0:00:42]} 24. g5 {[%clk 0:02:00]}  Nh7 {[%clk 0:00:39]} 25. Ng3 {[%clk 0:01:59]}  g6 {[%clk 0:00:31]} 26. Rd2 {[%clk 0:01:55]}  Qc7 {[%clk 0:00:24]} 27. e5 {[%clk 0:01:52]}  Bxg2 {[%clk 0:00:23]} 28. Rxg2 {[%clk 0:01:53]}  Bf8 {[%clk 0:00:21]} 29. Ne4 {[%clk 0:01:50]}  Bg7 {[%clk 0:00:20]} 30. h4 {[%clk 0:01:49]}  Nf8 {[%clk 0:00:19]} 31. Nf6+ {[%clk 0:01:45]}  Bxf6 {[%clk 0:00:19]} 32. gxf6 {[%clk 0:01:46]}  Kh7 {[%clk 0:00:18]} 33. Rg5 {[%clk 0:01:41]}  Kh6 {[%clk 0:00:17]} 34. Re2 {[%clk 0:01:40]}  Ne6 {[%clk 0:00:16]} 35. Reg2 {[%clk 0:01:39]}  Nxg5 {[%clk 0:00:16]} 36. hxg5+ {[%clk 0:01:39]}  Kh7 {[%clk 0:00:16]} 37. Rh2 {[%clk 0:01:38]}  Kg8 {[%clk 0:00:16]} 38. Bd2 {[%clk 0:01:35]}  Qd7 {[%clk 0:00:17]} 39. Qf3 {[%clk 0:01:32]}  Qg4+ {[%clk 0:00:16]} 40. Qxg4 {[%clk 0:01:32]}  hxg4 {[%clk 0:00:17]} 41. Rg2 {[%clk 0:01:32]}  d3 {[%clk 0:00:16]} 42. Rxg4 {[%clk 0:01:32]}  Rd4 {[%clk 0:00:16]} 43. Kf2 {[%clk 0:01:31]}  Re4 {[%clk 0:00:16]} 44. Be3 {[%clk 0:01:29]}  Rd8 {[%clk 0:00:16]} 45. Rg1 {[%clk 0:01:29]}  d2 {[%clk 0:00:15]} 46. Rd1 {[%clk 0:01:29]}  Rd3 {[%clk 0:00:15]} 47. Bxd2 {[%clk 0:01:27]}  Rxf4+ {[%clk 0:00:15]} 48. Ke2 {[%clk 0:01:27]}  Rfd4 {[%clk 0:00:15]} 49. a4 {[%clk 0:00:50]}  a5 {[%clk 0:00:14]} 50. Ke1 {[%clk 0:00:46]}  Kf8 {[%clk 0:00:14]} 51. Ke2 {[%clk 0:00:47]}  Ke8 {[%clk 0:00:14]} 52. Ke1 {[%clk 0:00:47]}  Kd7 {[%clk 0:00:14]} 53. Ke2 {[%clk 0:00:47]}  Ke6 {[%clk 0:00:15]} 54. Ke1 {[%clk 0:00:45]}  Kxe5 {[%clk 0:00:14]} 55. Ke2 {[%clk 0:00:46]}  Ke4 {[%clk 0:00:11]} 56. Bxa5 {[%clk 0:00:18]}  Rxd1 {[%clk 0:00:10]} 57. Bxb6 {[%clk 0:00:18]}  R4d2# {[%clk 0:00:10]} 0-1


[Site "https://www.chess.com"]

[Event "Titled Tuesday Blitz July 18 Early 2023"]
[White "Ganiev, Roman"]
[Black "Ratnesan, Ranesh"]
[WhiteFideId "4131452"]
[BlackFideId "439339"]
[WhiteElo "2569"]
[BlackElo "2226"]
[Result "1/2-1/2"]
[Round "1"]
[TimeControl "180+2"]
[Date "2023.07.18"]
[WhiteClock "0:00:08"]
[BlackClock "0:00:39"]
[Board "182"]

1. e4 {[%clk 0:03:00]}  c5 {[%clk 0:02:57]} 2. Nf3 {[%clk 0:02:59]}  d6 {[%clk 0:02:52]} 3. d4 {[%clk 0:02:58]}  cxd4 {[%clk 0:02:49]} 4. Nxd4 {[%clk 0:02:58]}  Nf6 {[%clk 0:02:50]} 5. Nc3 {[%clk 0:02:58]}  a6 {[%clk 0:02:50]} 6. h3 {[%clk 0:02:58]}  e5 {[%clk 0:02:49]} 7. Nde2 {[%clk 0:02:57]}  h5 {[%clk 0:02:49]} 8. g3 {[%clk 0:02:56]}  Be7 {[%clk 0:02:48]} 9. Bg2 {[%clk 0:02:56]}  O-O {[%clk 0:02:49]} 10. O-O {[%clk 0:02:56]}  Qc7 {[%clk 0:02:48]} 11. a4 {[%clk 0:02:56]}  b6 {[%clk 0:02:47]} 12. Be3 {[%clk 0:02:54]}  Bb7 {[%clk 0:02:47]} 13. f4 {[%clk 0:02:35]}  Nbd7 {[%clk 0:02:46]} 14. Nd5 {[%clk 0:02:27]}  Bxd5 {[%clk 0:02:34]} 15. exd5 {[%clk 0:02:28]}  Rac8 {[%clk 0:02:18]} 16. Nc3 {[%clk 0:02:25]}  exf4 {[%clk 0:02:15]} 17. Bxf4 {[%clk 0:02:24]}  Ne5 {[%clk 0:02:16]} 18. Bxe5 {[%clk 0:02:09]}  dxe5 {[%clk 0:02:17]} 19. Qe2 {[%clk 0:02:08]}  Bd6 {[%clk 0:02:15]} 20. Ne4 {[%clk 0:02:01]}  Nxe4 {[%clk 0:02:14]} 21. Bxe4 {[%clk 0:02:02]}  g6 {[%clk 0:02:15]} 22. Rf6 {[%clk 0:01:55]}  Be7 {[%clk 0:02:06]} 23. Rc6 {[%clk 0:01:53]}  Qd7 {[%clk 0:02:03]} 24. Kg2 {[%clk 0:01:52]}  Bc5 {[%clk 0:01:58]} 25. c3 {[%clk 0:01:49]}  a5 {[%clk 0:01:57]} 26. Rf1 {[%clk 0:01:44]}  Kg7 {[%clk 0:01:54]} 27. Qb5 {[%clk 0:01:34]}  Qd8 {[%clk 0:01:40]} 28. b4 {[%clk 0:01:13]}  axb4 {[%clk 0:01:41]} 29. cxb4 {[%clk 0:01:13]}  Bd4 {[%clk 0:01:41]} 30. Rxc8 {[%clk 0:00:53]}  Qxc8 {[%clk 0:01:40]} 31. Qc6 {[%clk 0:00:54]}  f5 {[%clk 0:01:35]} 32. Bd3 {[%clk 0:00:46]}  Qd8 {[%clk 0:01:24]} 33. h4 {[%clk 0:00:25]}  Rf6 {[%clk 0:01:16]} 34. Qc4 {[%clk 0:00:16]}  Rd6 {[%clk 0:01:14]} 35. Rc1 {[%clk 0:00:10]}  Rxd5 {[%clk 0:01:08]} 36. Qc7+ {[%clk 0:00:10]}  Rd7 {[%clk 0:01:01]} 37. Qxd8 {[%clk 0:00:10]}  Rxd8 {[%clk 0:01:02]} 38. Rc7+ {[%clk 0:00:10]}  Kf6 {[%clk 0:01:02]} 39. Bc4 {[%clk 0:00:11]}  e4 {[%clk 0:01:00]} 40. Rf7+ {[%clk 0:00:06]}  Ke5 {[%clk 0:01:00]} 41. Re7+ {[%clk 0:00:07]}  Kf6 {[%clk 0:00:56]} 42. Re6+ {[%clk 0:00:08]}  Kg7 {[%clk 0:00:56]} 43. Re7+ {[%clk 0:00:09]}  Kh8 {[%clk 0:00:52]} 44. Rc7 {[%clk 0:00:10]}  Be5 {[%clk 0:00:52]} 45. Rc6 {[%clk 0:00:09]}  Rd2+ {[%clk 0:00:52]} 46. Kf1 {[%clk 0:00:09]}  Bxg3 {[%clk 0:00:52]} 47. Rxg6 {[%clk 0:00:08]}  Bxh4 {[%clk 0:00:52]} 48. Rh6+ {[%clk 0:00:08]}  Kg7 {[%clk 0:00:52]} 49. Rxh5 {[%clk 0:00:09]}  Bg3 {[%clk 0:00:53]} 50. Rxf5 {[%clk 0:00:09]}  Rb2 {[%clk 0:00:49]} 51. Rg5+ {[%clk 0:00:09]}  Kf6 {[%clk 0:00:49]} 52. Rxg3 {[%clk 0:00:10]}  Rxb4 {[%clk 0:00:50]} 53. Bb5 {[%clk 0:00:10]}  Ke5 {[%clk 0:00:50]} 54. Rg5+ {[%clk 0:00:10]}  Kf4 {[%clk 0:00:50]} 55. Rg6 {[%clk 0:00:11]}  Kf3 {[%clk 0:00:48]} 56. Rf6+ {[%clk 0:00:11]}  Ke3 {[%clk 0:00:48]} 57. Rxb6 {[%clk 0:00:11]}  Rb1+ {[%clk 0:00:49]} 58. Kg2 {[%clk 0:00:11]}  Kd2 {[%clk 0:00:48]} 59. Rd6+ {[%clk 0:00:11]}  Kc3 {[%clk 0:00:48]} 60. Re6 {[%clk 0:00:11]}  Kd4 {[%clk 0:00:48]} 61. Kf2 {[%clk 0:00:12]}  Rb2+ {[%clk 0:00:47]} 62. Ke1 {[%clk 0:00:12]}  Ra2 {[%clk 0:00:48]} 63. Re8 {[%clk 0:00:12]}  Ke3 {[%clk 0:00:49]} 64. Kd1 {[%clk 0:00:11]}  Kd4 {[%clk 0:00:44]} 65. Kc1 {[%clk 0:00:11]}  e3 {[%clk 0:00:43]} 66. Kb1 {[%clk 0:00:12]}  Rh2 {[%clk 0:00:42]} 67. a5 {[%clk 0:00:10]}  Kc5 {[%clk 0:00:42]} 68. Bd3 {[%clk 0:00:09]}  Kd4 {[%clk 0:00:37]} 69. Bb5 {[%clk 0:00:04]}  Kc5 {[%clk 0:00:37]} 70. Ba6 {[%clk 0:00:04]}  Kb4 {[%clk 0:00:37]} 71. Rxe3 {[%clk 0:00:03]}  Kxa5 {[%clk 0:00:37]} 72. Bd3 {[%clk 0:00:03]}  Kb4 {[%clk 0:00:37]} 73. Bc2 {[%clk 0:00:04]}  Kc4 {[%clk 0:00:37]} 74. Rd3 {[%clk 0:00:05]}  Kc5 {[%clk 0:00:37]} 75. Kb2 {[%clk 0:00:05]}  Kc4 {[%clk 0:00:38]} 76. Rc3+ {[%clk 0:00:05]}  Kd4 {[%clk 0:00:38]} 77. Rc8 {[%clk 0:00:05]}  Kd5 {[%clk 0:00:39]} 78. Kc3 {[%clk 0:00:05]}  Rh4 {[%clk 0:00:38]} 79. Bd3 {[%clk 0:00:06]}  Ke5 {[%clk 0:00:38]} 80. Rd8 {[%clk 0:00:07]}  Ke6 {[%clk 0:00:38]} 81. Bc4+ {[%clk 0:00:07]}  Ke5 {[%clk 0:00:38]} 82. Rd5+ {[%clk 0:00:07]}  Kf6 {[%clk 0:00:38]} 83. Kd3 {[%clk 0:00:07]}  Kg6 {[%clk 0:00:38]} 84. Rd6+ {[%clk 0:00:07]}  Kf5 {[%clk 0:00:37]} 85. Bd5 {[%clk 0:00:07]}  Ke5 {[%clk 0:00:38]} 86. Rd8 {[%clk 0:00:07]}  Rd4+ {[%clk 0:00:38]} 87. Ke3 {[%clk 0:00:07]}  Rxd5 {[%clk 0:00:38]} 88. Rxd5+ {[%clk 0:00:08]}  Kxd5 {[%clk 0:00:39]} 1/2-1/2


[Site "https://www.chess.com"]

[Event "Titled Tuesday Blitz July 18 Early 2023"]
[White "disciplinedbrat"]
[Black "Zavgorodniy, Sergiy"]
[BlackFideId "14110148"]
[WhiteElo "2224"]
[BlackElo "2569"]
[Result "0-1"]
[Round "1"]
[TimeControl "180+2"]
[Date "2023.07.18"]
[WhiteClock "0:01:23"]
[BlackClock "0:00:14"]
[Board "183"]

1. b3 {[%clk 0:02:58]}  b6 {[%clk 0:02:59]} 2. Bb2 {[%clk 0:02:59]}  Bb7 {[%clk 0:02:59]} 3. d3 {[%clk 0:02:59]}  e6 {[%clk 0:02:55]} 4. h4 {[%clk 0:03:00]}  h5 {[%clk 0:02:53]} 5. e4 {[%clk 0:02:59]}  Nf6 {[%clk 0:02:52]} 6. Ke2 {[%clk 0:02:59]}  Be7 {[%clk 0:02:50]} 7. Ke1 {[%clk 0:02:59]}  c5 {[%clk 0:02:49]} 8. Nf3 {[%clk 0:02:59]}  Nc6 {[%clk 0:02:48]} 9. Be2 {[%clk 0:03:00]}  d6 {[%clk 0:02:46]} 10. Nbd2 {[%clk 0:03:00]}  Ng4 {[%clk 0:02:45]} 11. g3 {[%clk 0:02:56]}  Bf6 {[%clk 0:02:44]} 12. c3 {[%clk 0:02:53]}  b5 {[%clk 0:02:36]} 13. Qc2 {[%clk 0:02:52]}  b4 {[%clk 0:02:33]} 14. a3 {[%clk 0:02:52]}  a5 {[%clk 0:02:28]} 15. cxb4 {[%clk 0:02:52]}  axb4 {[%clk 0:02:27]} 16. a4 {[%clk 0:02:51]}  Bxb2 {[%clk 0:02:24]} 17. Qxb2 {[%clk 0:02:51]}  e5 {[%clk 0:02:18]} 18. Nc4 {[%clk 0:02:48]}  Qc7 {[%clk 0:01:57]} 19. Kf1 {[%clk 0:02:44]}  O-O {[%clk 0:01:53]} 20. Kg2 {[%clk 0:02:45]}  g6 {[%clk 0:01:52]} 21. Ng5 {[%clk 0:02:42]}  Nd4 {[%clk 0:01:46]} 22. Bxg4 {[%clk 0:02:41]}  hxg4 {[%clk 0:01:45]} 23. Ne3 {[%clk 0:02:41]}  f6 {[%clk 0:01:43]} 24. Nxg4 {[%clk 0:02:37]}  fxg5 {[%clk 0:01:39]} 25. hxg5 {[%clk 0:02:35]}  Kg7 {[%clk 0:01:38]} 26. Rh6 {[%clk 0:02:26]}  Rh8 {[%clk 0:01:36]} 27. Rah1 {[%clk 0:02:26]}  Qe7 {[%clk 0:01:22]} 28. f4 {[%clk 0:02:21]}  Rxh6 {[%clk 0:01:17]} 29. gxh6+ {[%clk 0:02:20]}  Kh7 {[%clk 0:01:16]} 30. Qf2 {[%clk 0:02:13]}  Rf8 {[%clk 0:01:11]} 31. Ne3 {[%clk 0:02:08]}  Nxb3 {[%clk 0:01:02]} 32. f5 {[%clk 0:02:09]}  Nd4 {[%clk 0:00:55]} 33. g4 {[%clk 0:01:52]}  gxf5 {[%clk 0:00:50]} 34. gxf5 {[%clk 0:01:52]}  Rg8+ {[%clk 0:00:45]} 35. Kf1 {[%clk 0:01:52]}  Qg5 {[%clk 0:00:42]} 36. f6 {[%clk 0:01:45]}  Rf8 {[%clk 0:00:38]} 37. f7 {[%clk 0:01:39]}  Qg6 {[%clk 0:00:32]} 38. Rg1 {[%clk 0:01:38]}  Qxf7 {[%clk 0:00:18]} 39. Rg7+ {[%clk 0:01:34]}  Qxg7 {[%clk 0:00:18]} 40. hxg7 {[%clk 0:01:33]}  Rxf2+ {[%clk 0:00:18]} 41. Kxf2 {[%clk 0:01:33]}  Kxg7 {[%clk 0:00:19]} 42. Nc4 {[%clk 0:01:34]}  Ba6 {[%clk 0:00:15]} 43. Nxd6 {[%clk 0:01:33]}  Bxd3 {[%clk 0:00:15]} 44. Ke3 {[%clk 0:01:33]}  Ba6 {[%clk 0:00:15]} 45. Kd2 {[%clk 0:01:31]}  Kf8 {[%clk 0:00:14]} 46. a5 {[%clk 0:01:29]}  Ke7 {[%clk 0:00:14]} 47. Kc1 {[%clk 0:01:23]}  Kxd6 {[%clk 0:00:14]} 0-1


[Site "https://www.chess.com"]

[Event "Titled Tuesday Blitz July 18 Early 2023"]
[White "Aggelis, Nikolaos"]
[Black "Pershina, Elena"]
[WhiteFideId "4213220"]
[BlackFideId "24147516"]
[WhiteElo "2568"]
[BlackElo "2217"]
[Result "1-0"]
[Round "1"]
[TimeControl "180+2"]
[Date "2023.07.18"]
[WhiteClock "0:01:06"]
[BlackClock "0:00:16"]
[Board "184"]

1. c4 {[%clk 0:02:58]}  e6 {[%clk 0:02:58]} 2. g3 {[%clk 0:02:55]}  d5 {[%clk 0:02:58]} 3. Bg2 {[%clk 0:02:56]}  Nf6 {[%clk 0:02:57]} 4. Nf3 {[%clk 0:02:57]}  Be7 {[%clk 0:02:52]} 5. O-O {[%clk 0:02:58]}  O-O {[%clk 0:02:50]} 6. d4 {[%clk 0:02:59]}  dxc4 {[%clk 0:02:49]} 7. Qc2 {[%clk 0:02:59]}  a6 {[%clk 0:02:47]} 8. a4 {[%clk 0:02:58]}  Bd7 {[%clk 0:02:43]} 9. Qxc4 {[%clk 0:02:57]}  Bc6 {[%clk 0:02:43]} 10. Bf4 {[%clk 0:02:58]}  Nbd7 {[%clk 0:02:42]} 11. Nc3 {[%clk 0:02:55]}  Nb6 {[%clk 0:02:32]} 12. Qd3 {[%clk 0:02:55]}  Nbd5 {[%clk 0:02:29]} 13. Rfe1 {[%clk 0:02:54]}  Nxc3 {[%clk 0:02:27]} 14. bxc3 {[%clk 0:02:54]}  Be4 {[%clk 0:02:26]} 15. Qd2 {[%clk 0:02:53]}  c5 {[%clk 0:02:25]} 16. Qb2 {[%clk 0:02:48]}  Qa5 {[%clk 0:02:16]} 17. Ne5 {[%clk 0:02:43]}  Bxg2 {[%clk 0:02:14]} 18. Kxg2 {[%clk 0:02:44]}  cxd4 {[%clk 0:02:11]} 19. cxd4 {[%clk 0:02:45]}  Qd5+ {[%clk 0:02:08]} 20. Kg1 {[%clk 0:02:42]}  Rfd8 {[%clk 0:02:07]} 21. Red1 {[%clk 0:02:39]}  Rac8 {[%clk 0:02:05]} 22. a5 {[%clk 0:02:38]}  Ne4 {[%clk 0:01:59]} 23. Nf3 {[%clk 0:02:34]}  Nc3 {[%clk 0:01:52]} 24. Rdc1 {[%clk 0:02:33]}  Nb5 {[%clk 0:01:45]} 25. Rxc8 {[%clk 0:02:33]}  Rxc8 {[%clk 0:01:44]} 26. Rc1 {[%clk 0:02:30]}  Rc4 {[%clk 0:01:36]} 27. Rxc4 {[%clk 0:02:22]}  Qxc4 {[%clk 0:01:37]} 28. e3 {[%clk 0:02:15]}  h6 {[%clk 0:01:32]} 29. h4 {[%clk 0:02:14]}  Bb4 {[%clk 0:01:30]} 30. Ne5 {[%clk 0:02:10]}  Qc3 {[%clk 0:01:24]} 31. Qxc3 {[%clk 0:02:10]}  Bxc3 {[%clk 0:01:25]} 32. Nc4 {[%clk 0:02:10]}  f6 {[%clk 0:01:18]} 33. h5 {[%clk 0:02:09]}  Kf7 {[%clk 0:01:18]} 34. Kf1 {[%clk 0:02:09]}  Ke7 {[%clk 0:01:18]} 35. Ke2 {[%clk 0:02:09]}  Kd7 {[%clk 0:01:18]} 36. Kd3 {[%clk 0:02:09]}  Be1 {[%clk 0:01:17]} 37. Ke2 {[%clk 0:02:09]}  Bc3 {[%clk 0:01:16]} 38. Kd3 {[%clk 0:02:05]}  Be1 {[%clk 0:01:16]} 39. f3 {[%clk 0:02:05]}  Kc6 {[%clk 0:01:13]} 40. g4 {[%clk 0:02:02]}  Nc7 {[%clk 0:01:03]} 41. e4 {[%clk 0:02:02]}  Nb5 {[%clk 0:01:01]} 42. Bd2 {[%clk 0:01:51]}  Bf2 {[%clk 0:00:56]} 43. Be3 {[%clk 0:01:49]}  Be1 {[%clk 0:00:56]} 44. f4 {[%clk 0:01:26]}  Nd6 {[%clk 0:00:50]} 45. Nxd6 {[%clk 0:01:12]}  Kxd6 {[%clk 0:00:51]} 46. e5+ {[%clk 0:01:12]}  fxe5 {[%clk 0:00:45]} 47. dxe5+ {[%clk 0:01:09]}  Kd5 {[%clk 0:00:45]} 48. Bb6 {[%clk 0:01:09]}  Bg3 {[%clk 0:00:43]} 49. Ke3 {[%clk 0:01:09]}  Bh2 {[%clk 0:00:41]} 50. Bc7 {[%clk 0:01:06]}  Bg1+ {[%clk 0:00:39]} 51. Kf3 {[%clk 0:01:05]}  Bd4 {[%clk 0:00:38]} 52. Bd6 {[%clk 0:01:05]}  Bc3 {[%clk 0:00:35]} 53. Bf8 {[%clk 0:01:06]}  Bxa5 {[%clk 0:00:35]} 54. Bxg7 {[%clk 0:01:07]}  Bd8 {[%clk 0:00:27]} 55. g5 {[%clk 0:01:05]}  a5 {[%clk 0:00:17]} 56. gxh6 {[%clk 0:01:05]}  a4 {[%clk 0:00:17]} 57. h7 {[%clk 0:01:06]}  a3 {[%clk 0:00:16]} 58. h8=Q {[%clk 0:01:06]} 1-0


[Site "https://www.chess.com"]